Workbook

Sheet 相談会集計
B1: 日付 | C1: 実施場所 | D1: グループ | E1: 講師数 | G1: 参加者 | I1: パソコンの基礎 | J1: デスクトップ整理 | K1: セキュリティ | L1: ワード | M1: エクセル | N1: インターネット | O1: Ｅメール | P1: はがき | Q1: 映像・音楽メディア | R1: 周辺接続 機器 | S1: デジカメ | T1: その他 | U1: 相談件数 | DX1: 6 | DY1: 19 | DZ1: 16 | EA1: 14 | EB1: 25 | EC1: 2
F2: 初めて | G2: 再来訪 | H2: 合計 | S2: 0 | T2: 0 | DX2: 北 | DY2: 地区文化センター | DZ2: 東 | EA2: 公 | EB2: 公 | EC2: 東
B3: 2017-04-01 | C3: 東地区 | D3: A | E3: 9 | F3: 0 | G3: 5 | H3: =F3+G3 -> 5 | I3: 0 | J3: 0 | K3: 0 | L3: 1 | M3: 2 | N3: 1 | O3: 1 | P3: 0 | Q3: 0 | R3: 0 | S3: 0 | T3: 0 | U3: 5 | DX3: D | DY3: Dグループ | DZ3: A | EA3: ｃ | EB3: ｃ | EC3: A
B4: 2018-04-05 | C4: 北地区 | D4: D | E4: 6 | F4: 0 | G4: 3 | H4: 3 | I4: 1 | J4: 0 | K4: 0 | L4: 0 | M4: 1 | N4: 1 | O4: 0 | P4: 0 | Q4: 0 | R4: 0 | S4: 0 | T4: 0 | U4: 3 | DX4: 9 | DY4: 10 | DZ4: 5 | EA4: 6
B5: 2017-04-13 | C5: 公民館 | D5: C | E5: 6 | F5: 0 | G5: 3 | H5: 3 | I5: 6 | J5: 1 | K5: 0 | L5: 0 | M5: 1 | N5: 0 | O5: 1 | P5: 2 | Q5: 0 | R5: 1 | S5: 1 | T5: 0 | U5: 7 | DX5: 1 | DY5: 0 | DZ5: 1 | EA5: 1
B6: 2017-04-15 | C6: 東地区 | D6: A | E6: 7 | F6: 0 | G6: 5 | H6: 5 | I6: 0 | J6: 1 | K6: 0 | L6: 0 | M6: 1 | N6: 1 | O6: 3 | P6: 0 | Q6: 0 | R6: 0 | S6: 1 | T6: 0 | U6: 7
B7: 2017-04-18 | C7: 北地区 | D7: D | E7: 6 | F7: 2 | G7: 5 | H7: 7 | I7: 2 | J7: 0 | K7: 0 | L7: 0 | M7: 4 | N7: 0 | O7: 0 | P7: 0 | Q7: 1 | R7: 1 | S7: 0 | T7: 0 | U7: 8
B8: 2017-04-24 | C8: 公民館 | D8: C | E8: 7 | F8: 1 | G8: 2 | H8: 3 | I8: 1 | J8: 0 | K8: 0 | L8: 1 | M8: 0 | N8: 0 | O8: 0 | P8: 1 | Q8: 1 | R8: 0 | S8: 1 | T8: 0 | U8: 5 | DX8: 4 | DY8: 3 | DZ8: 1 | EA8: 0
B9: 2017-05-06 | C9: 東地区 | D9: A | E9: 8 | F9: 0 | G9: 6 | H9: 6 | I9: 1 | J9: 1 | K9: 0 | L9: 0 | M9: 1 | N9: 3 | O9: 1 | P9: 0 | Q9: 0 | R9: 0 | S9: 2 | T9: 0 | U9: 9 | DX9: 0 | DY9: 1 | DZ9: 0 | EA9: 0
B10: 2017-05-10 | C10: 北地区 | D10: D | E10: 8 | F10: 2 | G10: 4 | H10: 6 | I10: 2 | J10: 0 | K10: 0 | L10: 1 | M10: 5 | N10: 1 | O10: 1 | P10: 0 | Q10: 0 | R10: 0 | S10: 0 | T10: 1 | U10: 11 | DX10: 0 | DY10: 0 | DZ10: 1 | EA10: 0
B11: 2017-05-11 | C11: 公民館 | D11: C | E11: 5 | F11: 0 | G11: 5 | H11: 5 | I11: 1 | J11: 0 | K11: 0 | L11: 0 | M11: 3 | N11: 0 | O11: 3 | P11: 1 | Q11: 0 | R11: 0 | S11: 1 | T11: 0 | U11: 9 | DX11: 2 | DY11: 1 | DZ11: 2 | EA11: 0
B12: 2017-05-16 | C12: 北地区 | D12: D | E12: 9 | F12: 0 | G12: 6 | H12: 6 | I12: 1 | J12: 0 | K12: 0 | L12: 2 | M12: 5 | N12: 1 | O12: 1 | P12: 0 | Q12: 0 | R12: 0 | S12: 1 | T12: 0 | U12: 11 | DX12: 2 | DY12: 4 | DZ12: 1 | EA12: 3
B13: 2017-05-20 | C13: 東地区 | D13: A | E13: 8 | F13: 0 | G13: 6 | H13: 6 | I13: 0 | J13: 0 | K13: 0 | L13: 1 | M13: 2 | N13: 2 | O13: 1 | P13: 0 | Q13: 0 | R13: 1 | S13: 0 | T13: 0 | U13: 7 | DX13: 4 | DY13: 2 | DZ13: 2 | EA13: 0
B14: 2017-05-22 | C14: 公民館 | D14: C | E14: 7 | F14: 0 | G14: 5 | H14: 5 | I14: 0 | J14: 0 | K14: 1 | L14: 2 | M14: 3 | N14: 0 | O14: 0 | P14: 0 | Q14: 0 | R14: 1 | S14: 1 | T14: 0 | U14: 8 | DX14: 1 | DY14: 0 | DZ14: 1 | EA14: 0
B15: 2017-06-03 | C15: 東地区 | D15: A | E15: 8 | F15: 0 | G15: 4 | H15: 4 | I15: 0 | J15: 2 | K15: 0 | L15: 0 | M15: 0 | N15: 4 | O15: 1 | P15: 0 | Q15: 0 | R15: 0 | S15: 0 | T15: 0 | U15: 7 | DX15: 0 | DY15: 0 | DZ15: 0 | EA15: 0
B16: 2017-06-07 | C16: 北地区 | D16: D | E16: 8 | F16: 0 | G16: 6 | H16: 6 | I16: 2 | J16: 1 | K16: 0 | L16: 0 | M16: 2 | N16: 1 | O16: 0 | P16: 0 | Q16: 1 | R16: 0 | S16: 0 | T16: 0 | U16: 7 | DX16: 0 | DY16: 1 | DZ16: 0 | EA16: 0
B17: 2017-06-08 | C17: 公民館 | D17: C | E17: 4 | F17: 0 | G17: 2 | H17: 2 | I17: 0 | J17: 0 | K17: 0 | L17: 1 | M17: 2 | N17: 0 | O17: 1 | P17: 0 | Q17: 0 | R17: 0 | S17: 1 | T17: 0 | U17: 5 | DX17: 0 | DY17: 1 | DZ17: 2 | EA17: 0
B18: 2017-06-17 | C18: 東地区 | D18: A | E18: 6 | F18: 2 | G18: 6 | H18: 8 | I18: 0 | J18: 0 | K18: 2 | L18: 2 | M18: 2 | N18: 1 | O18: 1 | P18: 0 | Q18: 1 | R18: 0 | S18: 0 | T18: 0 | U18: 9 | DX18: 1 | DY18: 0 | DZ18: 0 | EA18: 3
B19: 2017-06-20 | C19: 北地区 | D19: D | E19: 5 | F19: 0 | G19: 4 | H19: 4 | I19: 0 | J19: 0 | K19: 0 | L19: 0 | M19: 2 | N19: 0 | O19: 1 | P19: 0 | Q19: 2 | R19: 0 | S19: 0 | T19: 0 | U19: 5 | DX19: 0 | DY19: 0 | DZ19: 0 | EA19: 0
B20: 2017-06-26 | C20: 公民館 | D20: C | E20: 5 | F20: 0 | G20: 5 | H20: 5 | I20: 0 | J20: 0 | K20: 0 | L20: 1 | M20: 3 | N20: 1 | O20: 0 | P20: 0 | Q20: 1 | R20: 0 | S20: 0 | T20: 0 | U20: 6
B21: 2018-07-01 | C21: 東地区 | D21: A | E21: 9 | F21: 0 | G21: 8 | H21: 8 | I21: 0 | J21: 0 | K21: 0 | L21: 2 | M21: 2 | N21: 3 | O21: 2 | P21: 0 | Q21: 4 | R21: 0 | S21: 0 | T21: 0 | U21: 13
B22: 2018-07-05 | C22: 北地区 | D22: D | E22: 9 | F22: 1 | G22: 7 | H22: 8 | I22: 2 | J22: 0 | K22: 1 | L22: 0 | M22: 2 | N22: 0 | O22: 4 | P22: 0 | Q22: 1 | R22: 0 | S22: 1 | T22: 0 | U22: 11
B23: 2018-07-13 | C23: 公民館 | D23: C | E23: 4 | F23: 1 | G23: 3 | H23: 4 | I23: 0 | J23: 0 | K23: 0 | L23: 1 | M23: 4 | N23: 0 | O23: 0 | P23: 0 | Q23: 0 | R23: 0 | S23: 1 | T23: 0 | U23: 6
B24: 2018-07-18 | C24: 北地区 | D24: D | E24: 8 | F24: 0 | G24: 5 | H24: 5 | I24: 0 | J24: 0 | K24: 0 | L24: 1 | M24: 0 | N24: 0 | O24: 1 | P24: 0 | Q24: 3 | R24: 0 | S24: 0 | T24: 2 | U24: 7
B25: 2018-07-22 | C25: 東地区 | D25: A | E25: 8 | F25: 0 | G25: 5 | H25: 5 | I25: 0 | J25: 0 | K25: 0 | L25: 1 | M25: 2 | N25: 1 | O25: 0 | P25: 1 | Q25: 1 | R25: 0 | S25: 0 | T25: 1 | U25: 7
B26: 2018-07-24 | C26: 公民館 | D26: C | E26: 5 | F26: 2 | G26: 2 | H26: 4 | I26: 0 | J26: 0 | K26: 0 | L26: 0 | M26: 1 | N26: 0 | O26: 1 | P26: 0 | Q26: 0 | R26: 0 | S26: 0 | T26: 2 | U26: 4
B27: 2018-08-02 | C27: 北地区 | D27: D | E27: 9 | F27: 0 | G27: 5 | H27: 5 | I27: 2 | J27: 0 | K27: 0 | L27: 0 | M27: 0 | N27: 0 | O27: 0 | P27: 0 | Q27: 1 | R27: 0 | S27: 0 | T27: 0 | U27: 3
B28: 2018-08-05 | C28: 東地区 | D28: A | E28: 8 | F28: 0 | G28: 5 | H28: 5 | I28: 1 | J28: 0 | K28: 1 | L28: 0 | M28: 3 | N28: 1 | O28: 0 | P28: 0 | Q28: 0 | R28: 0 | S28: 0 | T28: 1 | U28: 7
B29: 2018-08-10 | C29: 公民館 | D29: C | E29: 4 | F29: 0 | G29: 3 | H29: 3 | I29: 1 | J29: 1 | K29: 0 | L29: 1 | M29: 0 | N29: 0 | O29: 1 | P29: 0 | Q29: 0 | R29: 1 | S29: 1 | T29: 0 | U29: 6
B30: 2018-08-15 | C30: 北地区 | D30: D | E30: 7 | F30: 0 | G30: 3 | H30: 3 | I30: 1 | J30: 0 | K30: 0 | L30: 0 | M30: 0 | N30: 0 | O30: 0 | P30: 0 | Q30: 1 | R30: 0 | S30: 1 | T30: 1 | U30: 4
B31: 2018-08-19 | C31: 東地区 | D31: A | E31: 8 | F31: 0 | G31: 6 | H31: 6 | I31: 2 | J31: 1 | K31: 0 | L31: 2 | M31: 1 | N31: 3 | O31: 1 | P31: 0 | Q31: 1 | R31: 0 | S31: 1 | T31: 0 | U31: 12
B32: 2018-08-28 | C32: 公民館 | D32: C | E32: 5 | F32: 0 | G32: 5 | H32: 5 | I32: 0 | J32: 0 | K32: 0 | L32: 1 | M32: 3 | N32: 1 | O32: 1 | P32: 0 | Q32: 1 | R32: 0 | S32: 0 | T32: 0 | U32: 7
B33: 2019-09-02 | C33: 東地区 | D33: A | E33: 8 | F33: 1 | G33: 6 | H33: 7 | I33: 0 | J33: 0 | K33: 0 | L33: 1 | M33: 3 | N33: 1 | O33: 0 | P33: 0 | Q33: 0 | R33: 0 | S33: 1 | T33: 4 | U33: 10
B34: 2019-09-06 | C34: 北地区 | D34: D | E34: 9 | F34: 1 | G34: 6 | H34: 7 | I34: 0 | J34: 0 | K34: 0 | L34: 2 | M34: 4 | N34: 0 | O34: 0 | P34: 0 | Q34: 1 | R34: 1 | S34: 0 | T34: 2 | U34: 10
B35: 2019-09-14 | C35: 公民館 | D35: C | E35: 6 | F35: 1 | G35: 6 | H35: 7 | I35: 0 | J35: 0 | K35: 0 | L35: 1 | M35: 1 | N35: 0 | O35: 0 | P35: 1 | Q35: 2 | R35: 2 | S35: 3 | T35: 0 | U35: 10
B36: 2019-09-16 | C36: 東地区 | D36: A | E36: 9 | F36: 0 | G36: 5 | H36: 5 | I36: 0 | J36: 1 | K36: 0 | L36: 1 | M36: 1 | N36: 2 | O36: 0 | P36: 0 | Q36: 0 | R36: 0 | S36: 1 | T36: 0 | U36: 6
B37: 2019-09-19 | C37: 北地区 | D37: D | E37: 7 | F37: 0 | G37: 4 | H37: 4 | I37: 0 | J37: 0 | K37: 0 | L37: 0 | M37: 0 | N37: 2 | O37: 1 | P37: 0 | Q37: 1 | R37: 0 | S37: 0 | T37: 0 | U37: 4
B38: 2019-09-25 | C38: 公民館 | D38: C | E38: 5 | F38: 0 | G38: 1 | H38: 1 | I38: 0 | J38: 0 | K38: 0 | L38: 0 | M38: 0 | N38: 0 | O38: 0 | P38: 0 | Q38: 0 | R38: 0 | S38: 0 | T38: 1 | U38: 1
B39: 2019-10-04 | C39: 北地区 | D39: D | E39: 9 | F39: 0 | G39: 4 | H39: 4 | I39: 2 | J39: 0 | K39: 1 | L39: 0 | M39: 0 | N39: 1 | O39: 0 | P39: 0 | Q39: 0 | R39: 0 | S39: 2 | T39: 0 | U39: 6
B40: 2019-10-07 | C40: 東地区 | D40: A | E40: 7 | F40: 0 | G40: 4 | H40: 4 | I40: 0 | J40: 0 | K40: 0 | L40: 2 | M40: 2 | N40: 2 | O40: 0 | P40: 0 | Q40: 0 | R40: 0 | S40: 0 | T40: 0 | U40: 6
B41: 2019-10-12 | C41: 公民館 | D41: C | E41: 4 | F41: 0 | G41: 6 | H41: 6 | I41: 0 | J41: 2 | K41: 0 | L41: 1 | M41: 1 | N41: 1 | O41: 2 | P41: 1 | Q41: 0 | R41: 0 | S41: 1 | T41: 1 | U41: 10
B42: 2019-10-17 | C42: 北地区 | D42: D | E42: 7 | F42: 1 | G42: 5 | H42: 6 | I42: 2 | J42: 0 | K42: 0 | L42: 0 | M42: 0 | N42: 1 | O42: 1 | P42: 1 | Q42: 2 | R42: 0 | S42: 0 | T42: 0 | U42: 7
B43: 2019-10-23 | C43: 公民館 | D43: C | E43: 5 | F43: 1 | G43: 6 | H43: 7 | I43: 1 | J43: 0 | K43: 0 | L43: 0 | M43: 0 | N43: 1 | O43: 1 | P43: 3 | Q43: 0 | R43: 0 | S43: 1 | T43: 1 | U43: 8
B44: 2019-10-28 | C44: 東地区 | D44: A | E44: 6 | F44: 0 | G44: 4 | H44: 4 | I44: 0 | J44: 1 | K44: 0 | L44: 0 | M44: 0 | N44: 3 | O44: 1 | P44: 1 | Q44: 0 | R44: 1 | S44: 0 | T44: 0 | U44: 7
A45: 11 | B45: 11月1日 | C45: 北地区 | D45: D | E45: 8 | F45: 0 | G45: 4 | H45: 4 | I45: 0 | J45: 0 | K45: 0 | L45: 0 | M45: 0 | N45: 2 | O45: 0 | P45: 1 | Q45: 0 | R45: 0 | S45: 0 | T45: 1 | U45: 4
A46: 11 | B46: 11月4日 | C46: 東地区 | D46: A | E46: 8 | F46: 1 | G46: 3 | H46: 4 | I46: 0 | J46: 0 | K46: 0 | L46: 0 | M46: 1 | N46: 1 | O46: 1 | P46: 1 | Q46: 0 | R46: 1 | S46: 0 | T46: 1 | U46: 6
A47: 11 | B47: 11月9日 | C47: 公民館 | D47: 0 | E47: 5 | G47: 4 | H47: 4 | I47: 0 | J47: 0 | K47: 0 | L47: 0 | M47: 0 | N47: 0 | O47: 0 | P47: 2 | Q47: 1 | R47: 0 | S47: 1 | T47: 0 | U47: 4
A48: 11 | B48: 11月14日 | C48: 北地区 | D48: D | E48: 9 | F48: 0 | G48: 7 | H48: 7 | I48: 3 | J48: 0 | K48: 0 | L48: 1 | M48: 1 | N48: 7 | O48: 0 | P48: 1 | Q48: 0 | R48: 0 | S48: 1 | T48: 0 | U48: 14
A49: 11 | B49: 11月18日 | C49: 東地区 | D49: A | E49: 6 | F49: 0 | G49: 6 | H49: 6 | I49: 0 | J49: 0 | K49: 0 | L49: 0 | M49: 1 | N49: 1 | O49: 1 | P49: 4 | Q49: 0 | R49: 1 | S49: 0 | T49: 0 | U49: 8
A50: 11 | B50: 11月27日 | C50: 公民館 | D50: C | E50: 5 | F50: 1 | G50: 0 | H50: 1 | I50: 0 | J50: 0 | K50: 0 | L50: 0 | M50: 0 | N50: 0 | O50: 0 | P50: 0 | Q50: 0 | R50: 1 | S50: 0 | T50: 0 | U50: 1
A51: 12 | B51: 12月2日 | C51: 東地区 | D51: A | E51: 7 | F51: 0 | G51: 2 | H51: 2 | I51: 0 | J51: 0 | K51: 0 | L51: 0 | M51: 0 | N51: 1 | O51: 0 | P51: 2 | Q51: 0 | R51: 0 | S51: 0 | T51: 0 | U51: 3
A52: 12 | B52: 12月6日 | C52: 北地区 | D52: D | E52: 6 | F52: 0 | G52: 3 | H52: 3 | I52: 2 | J52: 0 | K52: 0 | L52: 2 | M52: 0 | N52: 1 | O52: 0 | P52: 0 | Q52: 1 | R52: 0 | S52: 0 | T52: 0 | U52: 6
A53: 12 | B53: 12月14日 | C53: 公民館 | D53: C | E53: 3 | F53: 0 | G53: 3 | H53: 3 | I53: 0 | J53: 0 | K53: 0 | L53: 0 | M53: 1 | N53: 1 | O53: 0 | P53: 0 | Q53: 0 | R53: 0 | S53: 1 | T53: 0 | U53: 3
A54: 12 | B54: 12月16日 | C54: 東地区 | D54: A | E54: 8 | F54: 0 | G54: 3 | H54: 3 | I54: 0 | J54: 0 | K54: 0 | L54: 1 | M54: 0 | N54: 3 | O54: 1 | P54: 2 | Q54: 0 | R54: 1 | S54: 0 | T54: 0 | U54: 8
A55: 12 | B55: 12月18日 | C55: 公民館 | D55: C | E55: 5 | F55: 0 | G55: 0 | H55: 0 | I55: 0 | J55: 0 | K55: 0 | L55: 0 | M55: 0 | N55: 0 | O55: 0 | P55: 0 | Q55: 0 | R55: 0 | S55: 0 | T55: 0 | U55: 0
A56: 12 | B56: 12月19日 | C56: 北地区 | D56: D | E56: 9 | F56: 1 | G56: 4 | H56: 5 | I56: 1 | J56: 1 | K56: 0 | L56: 0 | M56: 1 | N56: 0 | O56: 0 | P56: 2 | Q56: 1 | R56: 0 | S56: 0 | T56: 0 | U56: 6
A57: 1 | B57: 1月6日 | C57: 東地区 | D57: A | E57: 7 | F57: 0 | G57: 0 | H57: 0 | S57: 0 | T57: 0 | U57: 0
A58: 1 | B58: 1月10日 | C58: 北地区 | D58: D | E58: 8 | F58: 0 | G58: 4 | H58: 4 | I58: 3 | J58: 0 | K58: 0 | L58: 0 | M58: 1 | N58: 0 | O58: 0 | P58: 0 | Q58: 1 | R58: 0 | S58: 0 | T58: 1 | U58: 6
A59: 1 | B59: 1月11日 | C59: 公民館 | D59: C | E59: 4 | F59: 1 | G59: 2 | H59: 3 | I59: 0 | J59: 0 | K59: 0 | L59: 0 | M59: 0 | N59: 0 | O59: 0 | P59: 1 | Q59: 0 | R59: 0 | S59: 1 | T59: 1 | U59: 3
A60: 1 | B60: 1月20日 | C60: 東地区 | D60: A | E60: 8 | F60: 2 | G60: 2 | H60: 4 | I60: 0 | J60: 0 | K60: 0 | L60: 2 | M60: 1 | N60: 2 | O60: 1 | P60: 0 | Q60: 1 | R60: 0 | S60: 0 | T60: 0 | U60: 7
A61: 1 | B61: 1月22日 | C61: 公民館 | D61: C | E61: 5 | F61: 0 | G61: 0 | H61: 0 | I61: 0 | J61: 0 | K61: 0 | L61: 0 | M61: 0 | N61: 0 | O61: 0 | P61: 0 | Q61: 0 | R61: 0 | S61: 0 | T61: 0 | U61: 0
A62: 1 | B62: 1月23日 | C62: 北地区 | D62: D | E62: 9 | F62: 0 | G62: 5 | H62: 5 | I62: 1 | J62: 1 | K62: 0 | L62: 1 | M62: 1 | N62: 3 | O62: 0 | P62: 0 | Q62: 2 | R62: 0 | S62: 0 | T62: 0 | U62: 9
A63: 2 | B63: 2月3日 | C63: 東地区 | D63: A | E63: 6 | F63: 0 | G63: 3 | H63: 3 | I63: 0 | J63: 0 | K63: 0 | L63: 2 | M63: 2 | N63: 2 | O63: 0 | P63: 0 | Q63: 0 | R63: 0 | S63: 0 | T63: 0 | U63: 6
A64: 2 | B64: 2月7日 | C64: 北地区 | D64: D | E64: 7 | F64: 0 | G64: 3 | H64: 3 | I64: 1 | J64: 0 | K64: 0 | L64: 0 | M64: 1 | N64: 2 | O64: 1 | P64: 0 | Q64: 0 | R64: 0 | S64: 0 | T64: 0 | U64: 5
A65: 2 | B65: 2月8日 | C65: 公民館 | D65: C | E65: 3 | F65: 1 | G65: 0 | H65: 1 | I65: 0 | J65: 0 | K65: 0 | L65: 0 | M65: 1 | N65: 0 | O65: 0 | P65: 0 | Q65: 0 | R65: 0 | S65: 0 | T65: 0 | U65: 1
A66: 2 | B66: 2月17日 | C66: 東地区 | D66: A | E66: 8 | F66: 1 | G66: 0 | H66: 1 | I66: 0 | J66: 0 | K66: 0 | L66: 0 | M66: 0 | N66: 0 | O66: 0 | P66: 0 | Q66: 0 | R66: 0 | S66: 0 | T66: 1 | U66: 1
A67: 2 | B67: 2月20日 | C67: 北地区 | D67: D | E67: 8 | F67: 1 | G67: 7 | H67: =F67+G67 -> 8 | I67: 1 | J67: 2 | K67: 0 | L67: 1 | M67: 1 | N67: 1 | O67: 2 | P67: 0 | Q67: 1 | R67: 0 | S67: 0 | T67: 1 | U67: 10
A68: 2 | B68: 2月26日 | C68: 公民館 | D68: C | E68: 5 | F68: 0 | G68: 1 | H68: 1 | I68: 0 | J68: 0 | K68: 0 | L68: 0 | M68: 1 | N68: 0 | O68: 0 | P68: 0 | Q68: 0 | R68: 0 | S68: 0 | T68: 0 | U68: =SUM(I68:T68) -> 1
A69: 3 | B69: 3月3日 | C69: 東地区 | D69: A | E69: 7 | F69: 0 | G69: 3 | H69: 3 | I69: 1 | J69: 0 | K69: 0 | L69: 1 | M69: 0 | N69: 2 | O69: 0 | P69: 1 | Q69: 0 | R69: 0 | S69: 0 | T69: 0 | U69: 5
A70: 3 | B70: 3月7日 | C70: 北地区 | D70: D | E70: 11 | F70: 1 | G70: 6 | H70: 7 | I70: 3 | J70: 1 | K70: 0 | L70: 2 | M70: 1 | N70: 0 | O70: 1 | P70: 0 | Q70: 2 | R70: 2 | S70: 0 | T70: 0 | U70: 12
A71: 3 | B71: 3月8日 | C71: 公民館 | D71: C | E71: 4 | F71: 2 | G71: 4 | H71: 6 | I71: 2 | J71: 0 | K71: 0 | L71: 2 | M71: 2 | N71: 0 | O71: 1 | P71: 0 | Q71: 0 | R71: 0 | S71: 0 | T71: 0 | U71: 7
A72: 3 | B72: 3月17日 | C72: 東地区 | D72: A | E72: 8 | F72: 3 | G72: 4 | H72: 7 | I72: 3 | J72: 0 | K72: 0 | L72: 2 | M72: 3 | N72: 1 | O72: 0 | P72: 0 | Q72: 0 | R72: 0 | S72: 0 | T72: 0 | U72: 9
A73: 3 | B73: 3月20日 | C73: 北地区 | D73: D | E73: 8 | F73: 3 | G73: 7 | H73: 10 | I73: 1 | J73: 1 | K73: 0 | L73: 2 | M73: 1 | N73: 4 | O73: 1 | P73: 0 | Q73: 0 | R73: 0 | S73: 1 | T73: 0 | U73: 11
A74: 3 | B74: 3月26日 | C74: 公民館 | D74: C | E74: 5 | G74: 3 | H74: =F74+G74 -> 3 | I74: 1 | J74: 0 | K74: 0 | L74: 0 | M74: 2 | N74: 0 | O74: 0 | P74: 0 | Q74: 0 | U74: 3
T76: 0 | U76: 0
B77: 開催回数：72回 | E77: =SUM(E3:E74) -> 488 | F77: =SUM(F3:F74) -> 34 | G77: 289 | H77: =SUM(H3:H74) -> 323 | I77: 54 | J77: 18 | K77: 6 | L77: 48 | M77: 92 | N77: 74 | O77: 43 | P77: 29 | Q77: 36 | R77: 15 | S77: 28 | T77: 23 | U77: 460
F78: 0.08823529412 | G78: 0.9117647059 | I78: 0.08997429306 | J78: 0.03598971722 | K78: 0.01542416452 | L78: 0.09254498715 | M78: 0.1979434447 | N78: 0.1593830334 | O78: 0.09511568123 | P78: 0.07197943445 | Q78: 0.08483290488 | R78: 0.03341902314 | S78: 0.06940874036 | T78: 0.05398457584
B80: ※ このエクセルデータ及びグラフは、HPの「パソコン相談会実施報告」に記入された情報で、逐次更新しています。
B81: ※ この表は、各グループ相談会担当者のご協力をいただき、ホームページ部会運営委員が作成を担当しています。
B82: ※ 相談者属性ならびに特記事項のシートもご覧ください。
U83: 0
U84: 0
U85: 0

Sheet 相談者属性
B1: 更新日：2019.3.31 | C1: パソコン相談会 相談者属性データ（平成30年度）
B2: 日付 | C2: 実施場所 | D2: グループ | E2: 性別 | G2: 年齢区分 | L2: パソコン | N2: パソコンのＯＳ
E3: 男 | F3: 女 | G3: ～49 | H3: 50～ | I3: 60～ | J3: 70～ | K3: 80～ | L3: 会場（7） | M3: 持参 | N3: ＸＰ | O3: Ｖｉｓｔａ | P3: 7 | Q3: 8 | R3: 10 | S3: mobile
B4: 2017-04-01 | C4: 東地区 | D4: A | E4: 4 | F4: 1 | G4: 0 | H4: 0 | I4: 2 | J4: 2 | K4: 1 | L4: 0 | M4: 5 | N4: 0 | O4: 0 | P4: 3 | Q4: 0 | R4: 2 | S4: 0
B5: 2018-04-05 | C5: 北地区 | D5: D | E5: 3 | F5: 0 | G5: 0 | H5: 0 | I5: 1 | J5: 2 | K5: 0 | L5: 1 | M5: 2 | N5: 0 | O5: 0 | P5: 0 | Q5: 0 | R5: 3 | S5: 0
B6: 2017-04-13 | C6: 公民館 | D6: C | E6: 2 | F6: 1 | G6: 0 | H6: 1 | I6: 0 | J6: 2 | K6: 0 | L6: 0 | M6: 3 | N6: 0 | O6: 0 | P6: 0 | Q6: 0 | R6: 3 | S6: 0
B7: 2017-04-15 | C7: 東地区 | D7: A | E7: 5 | F7: 0 | G7: 0 | H7: 0 | I7: 1 | J7: 3 | K7: 1 | L7: 0 | M7: 5 | N7: 0 | O7: 0 | P7: 2 | Q7: 0 | R7: 3 | S7: 0
B8: 2017-04-18 | C8: 北地区 | D8: D | E8: 4 | F8: 3 | G8: 0 | H8: 1 | I8: 2 | J8: 4 | K8: 0 | L8: 2 | M8: 5 | N8: 0 | O8: 0 | P8: 2 | Q8: 0 | R8: 5 | S8: 0
B9: 2017-04-24 | C9: 公民館 | D9: C | E9: 3 | F9: 0 | G9: 0 | H9: 0 | I9: 0 | J9: 3 | K9: 0 | L9: 0 | M9: 3 | N9: 0 | O9: 0 | P9: 0 | Q9: 0 | R9: 3 | S9: 0
B10: 2017-05-06 | C10: 東地区 | D10: A | E10: 5 | F10: 1 | G10: 0 | H10: 0 | I10: 2 | J10: 2 | K10: 2 | L10: 0 | M10: 6 | N10: 0 | O10: 1 | P10: 3 | Q10: 0 | R10: 2 | S10: 0
B11: 2017-05-10 | C11: 北地区 | D11: D | E11: 5 | F11: 1 | G11: 0 | H11: 0 | I11: 1 | J11: 4 | K11: 1 | L11: 1 | M11: 5 | N11: 0 | O11: 0 | P11: 3 | Q11: 0 | R11: 3 | S11: 0
B12: 2017-05-11 | C12: 公民館 | D12: C | E12: 3 | F12: 2 | G12: 0 | H12: 1 | I12: 0 | J12: 4 | K12: 0 | L12: 0 | M12: 5 | N12: 0 | O12: 0 | P12: 0 | Q12: 0 | R12: 5 | S12: 0
B13: 2017-05-16 | C13: 北地区 | D13: D | E13: 4 | F13: 2 | G13: 0 | H13: 0 | I13: 0 | J13: 5 | K13: 1 | L13: 1 | M13: 5 | N13: 0 | O13: 0 | P13: 2 | Q13: 1 | R13: 3 | S13: 0
B14: 2017-05-20 | C14: 東地区 | D14: A | E14: 6 | F14: 0 | G14: 0 | H14: 0 | I14: 1 | J14: 3 | K14: 2 | L14: 0 | M14: 6 | N14: 0 | O14: 0 | P14: 4 | Q14: 0 | R14: 2 | S14: 0
B15: 2017-05-22 | C15: 公民館 | D15: C | E15: 4 | F15: 1 | G15: 0 | H15: 1 | I15: 0 | J15: 4 | K15: 0 | L15: 0 | M15: 5 | N15: 0 | O15: 0 | P15: 0 | Q15: 1 | R15: 4 | S15: 0
B16: 2017-06-03 | C16: 東地区 | D16: A | E16: 4 | F16: 0 | G16: 0 | H16: 0 | I16: 0 | J16: 2 | K16: 2 | L16: 0 | M16: 4 | N16: 0 | O16: 0 | P16: 2 | Q16: 0 | R16: 2 | S16: 0
B17: 2017-06-07 | C17: 北地区 | D17: D | E17: 4 | F17: 2 | G17: 0 | H17: 0 | I17: 0 | J17: 5 | K17: 1 | L17: 1 | M17: 5 | N17: 0 | O17: 0 | P17: 2 | Q17: 1 | R17: 3 | S17: 0
B18: 2017-06-08 | C18: 公民館 | D18: C | E18: 2 | F18: 0 | G18: 0 | H18: 0 | I18: 0 | J18: 2 | K18: 0 | L18: 0 | M18: 2 | N18: 0 | O18: 0 | P18: 0 | Q18: 0 | R18: 2 | S18: 0
B19: 2017-06-17 | C19: 東地区 | D19: A | E19: 7 | F19: 1 | G19: 0 | H19: 0 | I19: 2 | J19: 4 | K19: 2 | L19: 1 | M19: 7 | N19: 0 | O19: 0 | P19: 3 | Q19: 1 | R19: 4 | S19: 0
B20: 2017-06-20 | C20: 北地区 | D20: D | E20: 2 | F20: 2 | G20: 0 | H20: 0 | I20: 0 | J20: 4 | K20: 0 | L20: 0 | M20: 4 | N20: 0 | O20: 0 | P20: 1 | Q20: 1 | R20: 2 | S20: 0
B21: 2017-06-26 | C21: 公民館 | D21: C | E21: 5 | F21: 0 | G21: 0 | H21: 0 | I21: 0 | J21: 5 | K21: 0 | L21: 0 | M21: 5 | N21: 0 | O21: 0 | P21: 0 | Q21: 1 | R21: 4 | S21: 0
B22: 2018-07-01 | C22: 東地区 | D22: A | E22: 5 | F22: 3 | G22: 0 | H22: 0 | I22: 2 | J22: 4 | K22: 2 | L22: 0 | M22: 8 | N22: 0 | O22: 1 | P22: 3 | Q22: 0 | R22: 4 | S22: 0
B23: 2018-07-05 | C23: 北地区 | D23: D | E23: 4 | F23: 4 | G23: 0 | H23: 0 | I23: 2 | J23: 5 | K23: 1 | L23: 1 | M23: 7 | N23: 0 | O23: 1 | P23: 2 | Q23: 2 | R23: 3 | S23: 0
B24: 2018-07-13 | C24: 公民館 | D24: C | E24: 4 | F24: 0 | G24: 0 | H24: 0 | I24: 1 | J24: 3 | K24: 0 | L24: 1 | M24: 3 | N24: 0 | O24: 0 | P24: 0 | Q24: 1 | R24: 3 | S24: 0
B25: 2018-07-18 | C25: 北地区 | D25: D | E25: 3 | F25: 2 | G25: 0 | H25: 0 | I25: 1 | J25: 3 | K25: 1 | L25: 0 | M25: 5 | N25: 0 | O25: 0 | P25: 1 | Q25: 1 | R25: 3 | S25: 0
B26: 2018-07-22 | C26: 東地区 | D26: A | E26: 5 | F26: 0 | G26: 0 | H26: 0 | I26: 0 | J26: 4 | K26: 1 | L26: 0 | M26: 5 | N26: 1 | O26: 0 | P26: 3 | Q26: 0 | R26: 1 | S26: 0
B27: 2018-07-24 | C27: 公民館 | D27: C | E27: 3 | F27: 1 | G27: 0 | H27: 0 | I27: 1 | J27: 3 | K27: 0 | L27: 0 | M27: 4 | N27: 0 | O27: 0 | P27: 0 | Q27: 2 | R27: 1 | S27: 1
B28: 2018-08-02 | C28: 北地区 | D28: D | E28: 3 | F28: 2 | G28: 0 | H28: 0 | I28: 0 | J28: 4 | K28: 1 | L28: 0 | M28: 5 | N28: 0 | O28: 0 | P28: 1 | Q28: 1 | R28: 3 | S28: 0
B29: 2018-08-05 | C29: 東地区 | D29: A | E29: 4 | F29: 1 | G29: 0 | H29: 0 | I29: 1 | J29: 4 | K29: 0 | L29: 0 | M29: 5 | N29: 0 | O29: 1 | P29: 2 | Q29: 0 | R29: 2 | S29: 0
B30: 2018-08-10 | C30: 公民館 | D30: C | E30: 3 | F30: 0 | G30: 0 | H30: 0 | I30: 0 | J30: 3 | K30: 0 | L30: 0 | M30: 3 | N30: 0 | O30: 0 | P30: 0 | Q30: 0 | R30: 3 | S30: 0
B31: 2018-08-15 | C31: 北地区 | D31: D | E31: 2 | F31: 1 | G31: 0 | H31: 0 | I31: 1 | J31: 2 | K31: 0 | L31: 0 | M31: 3 | N31: 0 | O31: 0 | P31: 0 | Q31: 1 | R31: 2 | S31: 0
B32: 2018-08-19 | C32: 東地区 | D32: A | E32: 5 | F32: 1 | G32: 0 | H32: 0 | I32: 0 | J32: 4 | K32: 2 | L32: 0 | M32: 6 | N32: 0 | O32: 0 | P32: 3 | Q32: 0 | R32: 3 | S32: 0
B33: 2018-08-28 | C33: =[2]全文記録!CM11 -> 公民館 | D33: C | E33: 5 | F33: 0 | G33: 0 | H33: 0 | I33: 1 | J33: 3 | K33: 1 | L33: 1 | M33: 4 | N33: 1 | O33: 0 | P33: 0 | Q33: 1 | R33: 2 | S33: 0
B34: 2019-09-02 | C34: 東地区 | D34: A | E34: 5 | F34: 2 | G34: 0 | H34: 0 | I34: 3 | J34: 2 | K34: 2 | L34: 3 | M34: 4 | N34: 0 | O34: 0 | P34: 4 | Q34: 1 | R34: 2 | S34: 0
B35: 2019-09-06 | C35: 北地区 | D35: D | E35: 3 | F35: 4 | G35: 0 | H35: 0 | I35: 2 | J35: 4 | K35: 1 | L35: 0 | M35: 7 | N35: 0 | O35: 0 | P35: 0 | Q35: 2 | R35: 5 | S35: 0
B36: 2019-09-14 | C36: 公民館 | D36: C | E36: 4 | F36: 3 | G36: 0 | H36: 1 | I36: 1 | J36: 3 | K36: 2 | L36: 1 | M36: 6 | N36: 0 | O36: 1 | P36: 1 | Q36: 1 | R36: 3 | S36: 0
B37: 2019-09-16 | C37: 東地区 | D37: A | E37: 3 | F37: 2 | G37: 0 | H37: 0 | I37: 3 | J37: 1 | K37: 1 | L37: 2 | M37: 3 | N37: 0 | O37: 1 | P37: 3 | Q37: 0 | R37: 1 | S37: 0
B38: 2019-09-19 | C38: 北地区 | D38: D | E38: 3 | F38: 1 | G38: 0 | H38: 0 | I38: 1 | J38: 3 | K38: 0 | L38: 0 | M38: 4 | N38: 0 | O38: 0 | P38: 1 | Q38: 0 | R38: 3 | S38: 0
B39: 2019-09-25 | C39: 公民館 | D39: C | E39: 0 | F39: 1 | G39: 0 | H39: 1 | I39: 0 | J39: 0 | K39: 0 | L39: 1 | M39: 0 | N39: 0 | O39: 0 | P39: 1 | Q39: 0 | R39: 0 | S39: 0
B40: 2019-10-04 | C40: 北地区 | D40: D | E40: 3 | F40: 1 | G40: 0 | H40: 1 | I40: 1 | J40: 2 | K40: 0 | L40: 0 | M40: 4 | N40: 0 | O40: 1 | P40: 1 | Q40: 0 | R40: 2 | S40: 0
B41: 2019-10-07 | C41: 東地区 | D41: A | E41: 3 | F41: 1 | G41: 0 | H41: 0 | I41: 1 | J41: 2 | K41: 1 | L41: 0 | M41: 4 | N41: 0 | O41: 0 | P41: 4 | Q41: 0 | R41: 0 | S41: 0
B42: 2019-10-12 | C42: 公民館 | D42: C | E42: 3 | F42: 3 | G42: 0 | H42: 1 | I42: 1 | J42: 4 | K42: 0 | L42: 0 | M42: 6 | N42: 0 | O42: 0 | P42: 1 | Q42: 1 | R42: 4 | S42: 0
B43: 2019-10-17 | C43: 北地区 | D43: D | E43: 5 | F43: 1 | G43: 0 | H43: 0 | I43: 3 | J43: 2 | K43: 1 | L43: 0 | M43: 6 | N43: 0 | O43: 0 | P43: 3 | Q43: 0 | R43: 3 | S43: 0
B44: 2019-10-23 | C44: 公民館 | D44: C | E44: 5 | F44: 2 | G44: 0 | H44: 0 | I44: 1 | J44: 6 | K44: 0 | L44: 0 | M44: 7 | N44: 0 | O44: 1 | P44: 1 | Q44: 2 | R44: 3 | S44: 0
B45: 2019-10-28 | C45: 東地区 | D45: A | E45: 3 | F45: 1 | G45: 0 | H45: 0 | I45: 0 | J45: 3 | K45: 1 | L45: 0 | M45: 4 | N45: 0 | O45: 0 | P45: 2 | Q45: 1 | R45: 1 | S45: 0
B46: 11月1日 | C46: 北地区 | D46: D | E46: 2 | F46: 2 | G46: 0 | H46: 0 | I46: 2 | J46: 1 | K46: 1 | L46: 0 | M46: 4 | N46: 0 | O46: 0 | P46: 0 | Q46: 2 | R46: 2 | S46: 0
B47: 11月4日 | C47: 東地区 | D47: A | E47: 4 | F47: 0 | G47: 0 | H47: 0 | I47: 1 | J47: 2 | K47: 1 | L47: 0 | M47: 4 | N47: 0 | O47: 0 | P47: 3 | Q47: 0 | R47: 1 | S47: 0
B48: 11月9日 | C48: 公民館 | D48: C | E48: 2 | F48: 2 | G48: 0 | H48: 1 | I48: 0 | J48: 3 | K48: 0 | L48: 0 | M48: 0 | N48: 0 | O48: 0 | P48: 1 | Q48: 1 | R48: 2 | S48: 0
B49: 11月14日 | C49: 北地区 | D49: D | E49: 5 | F49: 2 | G49: 0 | H49: 0 | I49: 3 | J49: 3 | K49: 1 | L49: 0 | M49: 7 | N49: 0 | O49: 0 | P49: 2 | Q49: 2 | R49: 3 | S49: 0
B50: 11月18日 | C50: 東地区 | D50: A | E50: 5 | F50: 1 | G50: 0 | H50: 0 | I50: 0 | J50: 4 | K50: 2 | L50: 0 | M50: 6 | N50: 0 | O50: 0 | P50: 3 | Q50: 1 | R50: 2 | S50: 0
B51: 11月27日 | C51: 公民館 | D51: C | E51: 1 | F51: 0 | G51: 0 | H51: 0 | I51: 1 | J51: 0 | K51: 0 | L51: 0 | M51: 1 | N51: 0 | O51: 0 | P51: 0 | Q51: 0 | R51: 1 | S51: 0
B52: 12月2日 | C52: 東地区 | D52: A | E52: 2 | F52: 0 | G52: 0 | H52: 0 | I52: 0 | J52: 1 | K52: 1 | L52: 0 | M52: 2 | N52: 0 | O52: 0 | P52: 1 | Q52: 0 | R52: 1 | S52: 0
B53: 12月6日 | C53: 北地区 | D53: D | E53: 2 | F53: 1 | G53: 0 | H53: 0 | I53: 1 | J53: 2 | K53: 0 | L53: 0 | M53: 3 | N53: 0 | O53: 0 | P53: 1 | Q53: 1 | R53: 1 | S53: 0
B54: 12月14日 | C54: 公民館 | D54: C | E54: 2 | F54: 1 | G54: 0 | H54: 0 | I54: 0 | J54: 3 | K54: 0 | L54: 0 | M54: 3 | N54: 0 | O54: 0 | P54: 1 | Q54: 0 | R54: 2 | S54: 0
B55: 12月16日 | C55: 東地区 | D55: A | E55: 3 | F55: 0 | G55: 0 | H55: 0 | I55: 0 | J55: 2 | K55: 1 | L55: 0 | M55: 3 | N55: 0 | O55: 0 | P55: 3 | Q55: 0 | R55: 0 | S55: 0
B56: 12月18日 | C56: 公民館 | D56: C | E56: 0 | F56: 0 | G56: 0 | H56: 0 | I56: 0 | J56: 0 | K56: 0 | L56: 0 | M56: 0 | N56: 0 | O56: 0 | P56: 0 | Q56: 0 | R56: 0 | S56: 0
B57: 12月19日 | C57: 北地区 | D57: D | E57: 2 | F57: 3 | G57: 1 | H57: 0 | I57: 1 | J57: 2 | K57: 1 | L57: 1 | M57: 4 | N57: 0 | O57: 0 | P57: 1 | Q57: 1 | R57: 3 | S57: 0
B58: 1月6日 | C58: 東地区 | D58: A | E58: 0 | F58: 0 | G58: 0 | H58: 0 | I58: 0 | J58: 0 | K58: 0 | L58: 0 | M58: 0 | N58: 0 | O58: 0 | P58: 0 | Q58: 0 | R58: 0 | S58: 0
B59: 1月10日 | C59: 北地区 | D59: D | E59: 1 | F59: 3 | G59: 1 | H59: 0 | I59: 0 | J59: 3 | K59: 0 | L59: 1 | M59: 3 | N59: 0 | O59: 0 | P59: 2 | Q59: 1 | R59: 1 | S59: 0
B60: 1月11日 | C60: 公民館 | D60: C | E60: 3 | F60: 0 | G60: 0 | H60: 0 | I60: 1 | J60: 1 | K60: 1 | L60: 0 | M60: 3 | N60: 0 | O60: 0 | P60: 0 | Q60: 0 | R60: 3 | S60: 0
B61: 1月20日 | C61: 東地区 | D61: A | E61: 2 | F61: 2 | G61: 0 | H61: 0 | I61: 2 | J61: 1 | K61: 1 | L61: 0 | M61: 4 | N61: 0 | O61: 0 | P61: 3 | Q61: 0 | R61: 1 | S61: 0
B62: 1月22日 | C62: 公民館 | D62: C | E62: 0 | F62: 0 | G62: 0 | H62: 0 | I62: 0 | J62: 0 | K62: 0 | L62: 0 | M62: 0 | N62: 0 | O62: 0 | P62: 0 | Q62: 0 | R62: 0 | S62: 0
B63: 1月23日 | C63: 北地区 | D63: D | E63: 2 | F63: 3 | G63: 1 | H63: 0 | I63: 1 | J63: 3 | K63: 0 | L63: 1 | M63: 4 | N63: 0 | O63: 0 | P63: 2 | Q63: 1 | R63: 2 | S63: 0
B64: 2月3日 | C64: 東地区 | D64: A | E64: 2 | F64: 1 | G64: 0 | H64: 0 | I64: 1 | J64: 2 | K64: 0 | L64: 0 | M64: 3 | N64: 0 | O64: 0 | P64: 3 | Q64: 0 | R64: 0 | S64: 0
B65: 2月7日 | C65: 北地区 | D65: D | E65: 3 | F65: 0 | G65: 0 | H65: 0 | I65: 0 | J65: 3 | K65: 0 | L65: 0 | M65: 3 | N65: 0 | O65: 0 | P65: 1 | Q65: 0 | R65: 2 | S65: 0
B66: 2月8日 | C66: 公民館 | D66: C | E66: 0 | F66: 1 | G66: 1 | H66: 0 | I66: 0 | J66: 0 | K66: 0 | L66: 1 | M66: 0 | N66: 0 | O66: 0 | P66: 0 | Q66: 0 | R66: 1 | S66: 0
B67: 2月17日 | C67: 東地区 | D67: A | E67: 1 | F67: 0 | G67: 0 | H67: 0 | I67: 0 | J67: 1 | K67: 0 | L67: 0 | M67: 1 | N67: 0 | O67: 0 | P67: 1 | Q67: 0 | R67: 0 | S67: 0
B68: 2月20日 | C68: 北地区 | D68: D | E68: 6 | F68: 2 | G68: 0 | H68: 0 | I68: 1 | J68: 6 | K68: 1 | L68: 0 | M68: 8 | N68: 0 | O68: 0 | P68: 1 | Q68: 1 | R68: 6 | S68: 0
B69: 2月26日 | C69: 公民館 | D69: C | E69: 0 | F69: 1 | G69: 1 | H69: 0 | I69: 0 | J69: 0 | K69: 0 | L69: 1 | M69: 0 | N69: 0 | O69: 0 | P69: 0 | Q69: 0 | R69: 0 | S69: 0
B70: 3月3日 | C70: 東地区 | D70: A | E70: 2 | F70: 1 | G70: 0 | H70: 0 | I70: 1 | J70: 1 | K70: 1 | L70: 0 | M70: 3 | N70: 0 | O70: 0 | P70: 2 | Q70: 0 | R70: 1 | S70: 0
B71: 3月7日 | C71: 北地区 | D71: D | E71: 4 | F71: 3 | G71: 0 | H71: 0 | I71: 1 | J71: 6 | K71: 0 | L71: 0 | M71: 7 | N71: 0 | O71: 0 | P71: 1 | Q71: 1 | R71: 5 | S71: 0
B72: 3月8日 | C72: 公民館 | D72: C | E72: 3 | F72: 3 | G72: 1 | H72: 0 | I72: 0 | J72: 4 | K72: 1 | L72: 1 | M72: 5 | N72: 0 | O72: 0 | P72: 0 | Q72: 1 | R72: 4 | S72: 0
B73: 3月17日 | C73: 東地区 | D73: A | E73: 3 | F73: 4 | G73: 1 | H73: 1 | I73: 2 | J73: 2 | K73: 1 | L73: 2 | M73: 4 | N73: 0 | O73: 0 | P73: 3 | Q73: 1 | R73: 3 | S73: 0
B74: 3月20日 | C74: 北地区 | D74: D | E74: 7 | F74: 3 | G74: 0 | H74: 0 | I74: 3 | J74: 6 | K74: 1 | L74: 2 | M74: 8 | N74: 0 | O74: 0 | P74: 3 | Q74: 2 | R74: 5 | S74: 0
B75: 3月26日 | C75: 公民館 | D75: C | E75: 1 | F75: 2 | G75: 1 | H75: 1 | I75: 0 | J75: 0 | K75: 1 | L75: 1 | M75: 2 | N75: 0 | O75: 0 | P75: 0 | Q75: 0 | R75: 2 | S75: 0
B78: ="開催回数："&COUNTA(J4:J77)&"回" -> 開催回数：72回 | E78: =SUM(E4:E77) -> 228 | F78: 95 | G78: 8 | H78: 11 | I78: 61 | J78: 196 | K78: 47 | L78: 28 | M78: 290 | N78: 2 | O78: 8 | P78: 102 | Q78: 39 | R78: 166 | S78: 1
E79: =E78/$R$84 -> 0.7058823529 | F79: 0.2941176471 | G79: 0.02476780186 | H79: 0.03405572755 | I79: 0.1888544892 | J79: 0.6068111455 | K79: 0.1455108359 | N79: =N78/SUM($N$78:$R$78) -> 0.006309148265 | O79: 0.02523659306 | P79: 0.3217665615 | Q79: 0.1230283912 | R79: 0.523659306 | S79: 0.003154574132
C81: 相談者・性別データ
C82: 東地区文化セﾝﾀｰ（Ａグループ） | G82: 公民館（Ｃグループ） | K82: 北地区文化セﾝﾀｰ（Ｄグループ） | O82: パソコン相談会 集計
C83: 開催数 | D83: 男性 | E83: 女性 | F83: 合計 | G83: 開催数 | H83: 男性 | I83: 女性 | J83: 合計 | K83: 開催数 | L83: 男性 | M83: 女性 | N83: 合計 | O83: 開催 | P83: 男性 | Q83: 女性 | R83: 相談者
C84: =COUNTIF($C$4:$C$76,"東地区") -> 24 | D84: =SUMIFS($E$4:$E$77,$C$4:$C$77,"東地区") -> 88 | E84: =SUMIFS($F$4:$F$77,$C$4:$C$77,"東地区") -> 23 | F84: =SUM(D84:E84) -> 111 | G84: =COUNTIF($C$4:$C$76,"公民館") -> 24 | H84: =SUMIFS($E$4:$E$77,$C$4:$C$77,"公民館") -> 58 | I84: =SUMIFS($F$4:$F$77,$C$4:$C$77,"公民館") -> 24 | J84: =SUM(H84:I84) -> 82 | K84: =COUNTIF($C$4:$C$76,"北地区") -> 24 | L84: =SUMIFS($E$4:$E$77,$C$4:$C$77,"北地区") -> 82 | M84: =SUMIFS($F$4:$F$77,$C$4:$C$77,"北地区") -> 48 | N84: =SUM(L84:M84) -> 130 | O84: =G84+K84+C84 -> 72 | P84: =D84+H84+L84 -> 228 | Q84: =E84+I84+M84 -> 95 | R84: =F84+J84+N84 -> 323
C85: 相談件数データ
C86: 相談件数 計 | F86: =SUMIFS(相談会集計!$U$3:$U$76,相談会集計!$C$3:$C$76,"東地区") -> 165 | G86: 相談件数 計 | J86: =SUMIFS(相談会集計!$U$3:$U$76,相談会集計!$C$3:$C$76,"公民館") -> 115 | K86: 相談件数 計 | N86: =SUMIFS(相談会集計!$U$3:$U$76,相談会集計!$C$3:$C$76,"北地区") -> 180 | O86: 相談件数 総計 | R86: =F86+J86+N86 -> 460
O87: １開催当たり | Q87: ="相談者＝"&ROUND(R84/O84,1)&"人" -> 相談者＝4.5人
Q88: ="相談数＝"&ROUND(R86/O84,1)&"件" -> 相談数＝6.4件
C91: 相談者の男女構成 | G91: 相談者の年齢構成 | M91: パソコンのOS構成
C92: 男性 | D92: 女性 | G92: ～49 | H92: 50～ | I92: 60～ | J92: 70～ | K92: 80～ | M92: ＸＰ | N92: Vista | O92: 7 | P92: 8 | Q92: 10 | R92: moblie
C93: =E78 -> 228 | D93: =F78 -> 95 | E93: 人 | G93: =G78 -> 8 | H93: =H78 -> 11 | I93: =I78 -> 61 | J93: =J78 -> 196 | K93: =K78 -> 47 | L93: 人 | M93: =N78 -> 2 | N93: 8 | O93: 102 | P93: 39 | Q93: 166 | R93: 1 | S93: 台
C114: ◎相談会参加人数推移 | Q114: ◎年間開催計画：A=24回,C=24回,D=24回 合計72回
C115: ｸﾞﾙｰﾌﾟ | D115: 4月 | E115: 5月 | F115: 6月 | G115: 7月 | H115: 8月 | I115: 9月 | J115: 10月 | K115: 11月 | L115: 12月 | M115: 1月 | N115: 2月 | O115: 3月 | P115: 合計 | Q115: 人/回
C116: A・東 | D116: 10 | E116: 12 | F116: 12 | G116: 13 | H116: 11 | I116: 12 | J116: 8 | K116: 10 | L116: =2+3 -> 5 | M116: =0+4 -> 4 | N116: =3+1 -> 4 | O116: 10 | P116: =SUM(D116:O116) -> 111 | Q116: =P116/$C$84 -> 4.625
C117: C・公 | D117: 6 | E117: 10 | F117: 7 | G117: 8 | H117: 8 | I117: 8 | J117: 13 | K117: 5 | L117: =0+3 -> 3 | M117: =0+3 -> 3 | N117: =1+1 -> 2 | O117: 9 | P117: =SUM(D117:O117) -> 82 | Q117: =P117/$G$84 -> 3.416666667
C118: D・北 | D118: 10 | E118: 12 | F118: 10 | G118: 13 | H118: 8 | I118: 11 | J118: 10 | K118: 11 | L118: =5+3 -> 8 | M118: =4+5 -> 9 | N118: =3+8 -> 11 | O118: 17 | P118: =SUM(D118:O118) -> 130 | Q118: =P118/$K$84 -> 5.416666667
C119: 合計 | D119: =SUM(D116:D118) -> 26 | E119: 34 | F119: 29 | G119: 34 | H119: 27 | I119: 31 | J119: 31 | K119: 26 | L119: =SUM(L116:L118) -> 16 | M119: =SUM(M116:M118) -> 16 | N119: =SUM(N116:N118) -> 17 | O119: =SUM(O116:O118) -> 36 | P119: =SUM(D119:O119) -> 323 | Q119: =P119/$O$84 -> 4.486111111

Sheet 特記事項
D1: 特記事項 平成30年度
C2: ◎ | D2: 4/1日・Aグループ（東文センター）
D3: ー
C5: ◎ | D5: 4/5日・Dグループ（北文センター）
D6: スマホ相談が3件ありました。スマホからPCに画像の取り込み 2件, PCからスマホに画像の取り込み 1件
C7: ◎ | D7: 4/13日・Cグループ（公民館）
D8: ＊PCとスマホのテザリングを教える。＊スマホやデジカメの写真をPCに送る方法、＊PCの写真をUSBに移す方法。 ＊Vista→Win10への移行の段取り。
C9: ◎ | D9: 4/15日・Aグループ（東文センター）
D10: 来訪者１名は、口頭相談のみでパソコン使用なし。
C12: ◎ | D12: 4/18日・Dグループ（北文センター）
D13: ー
C15: ◎ | D15: 4/24日・Cグループ（公民館）
D16: コメント = * 筆ぐるめで封筒の印刷方法。 * 写真を利用してワードにてアルバムを作成。
C18: ◎ | D18: 2018-05-06
D19: ー
C20: ◎ | D20: 2018-05-10
D21: コメント = プラス社の宛名ラベル作成相談
C23: ◎ | D23: 2018-05-11
D24: * 読み取り専用フォルダーを解除。
D25: * 19年用年賀状ークリップアートの選択、挿入、画像サイズ調整
D26: * エクセル：表データー作成、アウトルック：メール作成。
D27: * エクセル：表の作成方法、Eメール（サンダーバード）: 新規フォルダー作成、メールの移動など。
C28: ◎ | D28: 2018-05-16
D29: ー
C30: ◎ | D30: 2018-05-20
C32: ◎ | D32: 2018-05-22
D33: * Wordに画像を挿入する方法。 * 表の作成をワードとエクセルでやってみる。
D34: * エクセルで画像チラシ作成、１クリックを２クリック開きに変更、USBメモリーにファイル保存。
D35: * 支払い明細表作成（セル内改行）。
C36: ◎ | D36: 2018-06-03
D37: ー
C38: ◎ | D38: 2018-06-07
D39: * 本日は家で悩んでいた事が解消しました。
C40: ◎ | D40: 2018-06-08
D41: * エクセル印刷範囲の設定、SDカードのフォーマット他。
D42: * 本日は家で悩んでいた事が解消しました。
C43: ◎ | D43: 2018-06-17
D44: ー
C45: ◎ | D45: 2018-06-20
D46: ー
C47: ◎ | D47: 2018-06-26
D48: * ワード文章で写真・図形・テキストボックスを挿入する。 * 今日は大変勉強になりました。
D49: * エクセルで写真・ポスター。 * エクセルで表の作成、オートサム。
C50: ◎ | D50: ７/１日 ・Aグループ（東文センター）
D51: コメント = 特に無し。
C52: ◎ | D52: 7/5日・Dグループ（北文センター）
D53: ー
C54: ◎ | D54: 7/13日・Cグループ（公民館）
C56: ◎ | D56: 7/18日・Dグループ（北文センター）
D57: ①ウイルスバスター契約の継続方法
D58: ②PC起動時間問題
C59: ◎ | D59: 7/22日・Aグループ（東文センター）
D60: Windous Xp パソコンを持参され、廃棄するのでデータを消去したいとのご相談がありました。
D61: マイドキュメント等のデータを削除し、表面上データは削除したが、実際にはデータは残っていることをお伝えし、廃棄する前にハードディスクを取り外して、壊すなどの処置をしてから出されることをお勧めしました。
C62: ◎ | D62: 7/24日・Cグループ（公民館）
D63: * メールの登録の方法 * エクセルで医療費明細表作成 * "Power2Go" でバックアップの方法
D64: * もらった富士通モバイル（オフイスプロ有り、アカウント未登録）、Y'mobile Wifiルーターのバージョンアップが2017年11月まで、アドレス入力が出来ないので、パソコンをくれた人に処理をお願いするようにアドバイス。
C65: ◎ | D65: 2018-08-02
D66: ー
C67: ◎ | D67: 2018-08-05
D68: 現在 Vista PCを使用されている方より､パソコンのOSを更新すべきかスマートホンにすべきかのご相談があった。
C69: ◎ | D69: 2018-08-10
D70: * メールにファイルを添付する。 スキャンの方法。
D71: * デスクトップがタブレットモードになってたので、元に戻しました。
C72: ◎ | D72: 2018-08-15
D73: 相談者と「ミニ講座」開催の相談
C74: ◎ | D74: 2018-08-19
D75: ー
C76: ◎ | D76: 2018-08-28
D77: * エクセルの計算方法、表の作り方 * エクセルで表集計自動計算について（医療費控除用として）
D78: * メール（写真送付）、エクセル操作。
C79: ◎ | D79: 2018/9/2 東文
D80: ２名が、昨日より始まったパワーポイント講座の受講者で、パワーポイントに関するご相談でした。
D81: 他、２名が現在 Windows Vista のPCを使用中の方で、今後の情報端末の選択に関するご相談でした。
C82: ◎ | D82: 2018/9/6 北文
D83: [その他内訳]パワーポイント関連の相談 2件
C84: ◎ | D84: 2018/9/14 公民館
D85: * iPhoneからPCへ写真を取り込む方法。 * エクセルの表計算の計算式入力について。
D86: * 写真のファイル取込み、USBへの書き込み。 * OneDriveについて。 * SDカード写真の取込み、年賀状ワードで作成。 * PCにOfficeが入ってないためメモ帳で入力練習。
C87: ◎ | D87: 2018/9/16 ・ Aグループ（東文センター）
D88: ー
C89: ◎ | D89: 2018/9/19 ・ Dグループ（北文センター）
D90: ー
C91: ◎ | D91: 2018/9/25 ・ Cグループ（公民館）
D92: ホームページ作成の方法の説明。
C93: ◎ | D93: 2018/10/4 ・ Dグループ（北文センター）
D94: 'ー
C95: ◎ | D95: 2018/10/7 ・ Aグループ（東文センター）
D96: 'ー
C97: ◎ | D97: 2018/10/12 ・ Cグループ（公民館）
D98: * パソコン立ち上げ相談、年賀状の作成 * 年賀状、メールの整理 * パソコンに写真を取り込む方法。
D99: * デスクトップの整理。
C100: ◎ | D100: 2018/10/17 ・ Dグループ（北文センター）
D101: 'ー
C102: ◎ | D102: 2018/10/23 ・ Cグループ（公民館）
D103: * 写真の整理。 * プリンターインクの相談、ワードの画像加工、年賀状。 * 筆ぐるめ操作。
D104: * 郵便局の年賀状フリー素材を筆ぐるめに取り入れる練習。 * グーグルのブックマークについて。
D105: * ヤフーメールをoutlookメールに登録する方法。
C106: ◎ | D106: 2018/10/28 ・ Aグループ（東文センター）
D107: 'ー
C108: ◎ | D108: 2018/11/1 Dグループ（北文センター）
D109: コメント = その他 : スマホアプリの「LINE」の使い方
C110: ◎ | D110: 2018/11/4 Aグループ（東文センター）
D111: コメント = パワーポイントに関する相談がありました。
C112: ◎ | D112: 2018/11/9 Cグループ（公民館）
D113: * 写真ファイル操作（読み込み、ファイル編集、USBメモリーへ出力）。
D114: * 年賀状完成
D115: * 日本郵便のフリーお正月素材のダウンロードの方法と、筆ぐるめへの取込み方法の復習。
C116: ◎ | D116: 2018/11/14 Dグループ（北文センター）
D117: 'ー
C118: ◎ | D118: 2018/11/18 Aグループ（東文センター）
D119: ー
C120: ◎ | D120: 2018/11/27 Cグループ（公民館）
D121: ー
C122: ◎ | D122: 2018/12/2 Aグループ（東文センター）
D123: コメント = 特にありません。
C124: ◎ | D124: 2018/12/6 Dグループ（北文センター）
D125: ー
C126: ◎ | D126: 2018/12/14 Cグループ（公民館）
D127: ー
C128: ◎ | D128: 2018/12/16 Aグループ（東文センター）
D129: ー
C130: ◎ | D130: 2018/12/18 Cグループ（公民館）
D131: コメント = 年末だからか、来訪者はゼロでした。
C132: ◎ | D132: 2018/12/19 Dグループ（北文センター）
D133: ー
C134: ◎ | D134: 2019/1/6 Aグループ（東文センター）
D135: コメント = 講師７名でお待ちしましたが本日の来訪者は、ありませんでした。
C136: ◎ | D136: 2019/1/10 Dグループ（北文センター）
D137: コメント = パソコンのバッテリー充電機能相談
C138: ◎ | D138: 2019/1/11 Cグループ（公民館）
D139: * 翻訳ソフトについて。
D140: * デジカメ写真をパソコンへ移す方法と印刷する方法
D141: * 筆まめの住所録を印刷する方法
C142: ◎ | D142: 2019/1/20 Aグループ（東文センター）
D143: コメント = 特になし
C144: ◎ | D144: 2019/1/22 Cグループ（公民館）
D145: コメント = 今日（1/22 火曜日）来訪者はゼロでした
C146: ◎ | D146: 2019/1/23 Dグループ（北文センター）
D147: ー
C148: ◎ | D148: 2019/2/3 Aグループ（東文センター）
D149: コメント = 特にありません。
C150: ◎ | D150: 2019/2/7 Dグループ（北文センター）
D151: ー
C152: ◎ | D152: 2019/2/8 Cグループ（公民館）
D153: コメント = Excel講座の参加者ーExcelの復習と予習。
C154: ◎ | D154: 2019/2/17 Aグループ（東文センター）
D155: コメント = 先日HPより問い合わせ頂いた方が来館され、インターネットやワードなどを使用する時に、時間がかかり重たくなってきたので、早く立ち上がるようにしたいというご相談があり、対応させて頂きました。
C156: ◎ | D156: 2019/2/20 Dグループ（北文センター）
D157: コメント = 名刺作成の基本作業
C158: ◎ | D158: 2019/2/26 Cグループ（公民館）
D159: コメント = Excel講習会の復習。
C160: ◎ | D160: 2019/3/3 Aグループ（東文センター）
D161: コメント = 特にありません。
C162: ◎ | D162: 2019/3/7 Dグループ（北文センター）
D163: コメント = 本日の講師数は11名でした
C164: ◎ | D164: 2019/3/8 Cグループ（公民館）
D165: * フリー素材をパソコンに取り入れ、ワードに挿入する方法。 * エクセル表操作 * ワード、縦書き文章中で２ケタの数字を横書きにする方法
C166: ◎ | D166: 2019/3/17 Aグループ（東文センター）
D167: コメント = 現在講座受講中の方２名の来訪がありました。
C168: ◎ | D168: 2019/3/20 Dグループ（北文センター）
D169: －
C170: ◎ | D170: 2019/3/26 Cグループ（公民館）
D171: * 月一回になるのはショックです。
D172: * 無線マウスの接続。
